Cogmind - Beta 17 @@@ ROGUE MODE // 2026.06.28 @ 09:53:49 Player: Lifeweb Result: Destroyed by 7S-9OW(R) with Subdweller Machine Gun Performance ------------- Evolutions (0) 0 Regions Visited (2) 400 Robots Destroyed (17) 85 Value Destroyed (498) 498 Prototype IDs (0) 0 Alien Tech Used (0) 0 Bonus (0) 0 TOTAL SCORE: 983 Bonus ------- None Cogmind --------- Core Integrity 0/250 Matter 293/300 Energy 315/315 System Corruption 1% Temperature Cool (0) Movement Walking (120) Location -10/Subcaves Parts ------- > --- POWER (1) -------- Neutrino Core > --- PROPULSION (2) --- Carbon-fiber Leg Myomer Leg > --- UTILITY (2) ------ Subdweller Optics Targeting Computer > --- WEAPON (2) ------- Bore Cannon Mining Claw > --- INVENTORY (5) ---- Rocket Launcher Peak State ------------ > --- POWER ------------ Neutrino Core > --- PROPULSION ------- Carbon-fiber Leg Myomer Leg > --- UTILITY ---------- Subdweller Optics Targeting Computer > --- WEAPON ----------- Bore Cannon Mining Claw > --- INVENTORY -------- Rocket Launcher [Rating: 25] Favorites ----------- Power Ion Engine Engine Ion Engine Power Core Neutrino Core Propulsion Aluminum Leg Leg Aluminum Leg Utility Medium Armor Plating Device Subdweller Optics Processor Targeting Computer Protection Medium Armor Plating Weapon Rocket Launcher Ballistic Gun Light Assault Rifle Ballistic Cannon Bore Cannon Launcher Rocket Launcher Slashing Weapon Mining Claw Build | -11 -10 -10 ------- Run | Yrd Mat Sub Slots Evolved . | . . . Power . | . . . Propulsion . | . . . Utility . | . . . Weapon . | . . . Parts Attached 16 | 5 5 6 Power 2 | 1 . 1 Engine 1 | 1 . . Core 1 | . . 1 Reactor . | . . . Propulsion 4 | 2 . 2 Treads . | . . . Leg 4 | 2 . 2 Wheel . | . . . Hover . | . . . Flight . | . . . Utility 4 | . 2 2 Device 1 | . . 1 Storage . | . . . Processor 1 | . . 1 Hackware . | . . . Protection 2 | . 2 . Artifact . | . . . Weapon 6 | 2 3 1 Energy Gun . | . . . Energy Cannon . | . . . Ballistic Gun 2 | 2 . . Ballistic Cannon 1 | . . 1 Launcher 2 | . 2 . Special Weapon . | . . . Impact Weapon . | . . . Slashing Weapon 1 | . 1 . Piercing Weapon . | . . . Special Melee Weapon . | . . . Unidentified Prototypes . | . . . Parts Lost 6 | . 2 4 Power 1 | . . 1 Propulsion 2 | . 1 1 Utility 2 | . 1 1 Weapon 1 | . . 1 Highest Loss Streak 4 | . 1 4 To Critical Strikes . | . . . Average Backups . | . . . Power . | . . . Propulsion . | . . . Utility . | . . . Weapon . | . . . Tool/Special . | . . . Unused Backups . | . . . Power . | . . . Propulsion . | . . . Utility . | . . . Weapon . | . . . Tool/Special . | . . . Average Slot Usage (%) 82 | . 89 62 Engine 12 | . 14 8 Leg 19 | . 20 15 Protection 21 | . 26 8 Launcher 21 | . 26 8 Slashing Weapon 4 | . . 14 Peak Build Rating 25 | 5 11 25 Average Rating 9 | 3 10 9 On Entrance 4 | . 5 7 Avg Prop Armor Cover (%) . | . . . Naked Turns . | . . . Heaviest Build 27 | 7 27 27 Greatest Support 40 | 20 20 40 Greatest Overweight (x) 2 | . 2 1 Average Overweight (x) 1 | . 1 . Largest Inventory Capacity 5 | 5 5 5 Average Capacity 5 | 5 5 5 Most Carried 2 | 1 2 2 Average Carried . | . . . Final Capacity 5 | 5 5 5 Final Carried 1 | . 1 1 Class Distribution -------------------- 92% | Mutant 7% | Scavenger-Mutant Dominant Class ---------------- Mutant | -10/Materials Mutant | -10/Subcaves Resources | -11 -10 -10 ----------- Run | Yrd Mat Sub Matter Collected 655 | 203 135 317 Remotely . | . . . Salvage Created 321 | . 181 140 Parts 30 | . 22 8 Haulers Intercepted . | . . . Recyclers Shooed . | . . . Parts Field Recycled . | . . . Retrieved Matter . | . . . Parts Self-Destructed . | . . . Prevented . | . . . Parts Restored . | . . . Kills | -11 -10 -10 ------- Run | Yrd Mat Sub Combat Hostiles Destroyed 12 | . 9 3 Melee 1 | . . 1 AOE 11 | . 9 2 Classes Destroyed 5 | . 4 1 Builder 2 | . 2 . Watcher 3 | . 3 . Swarmer 3 | . 3 . Grunt 6 | . 6 . Subdweller 3 | . . 3 Best Kill Streak 6 | . 6 3 Combat Bots Only 5 | . 5 3 Max Kills in Single Turn 2 | . 2 2 Gunslinging . | . . . Exploded 2 | . 2 2 Melee 1 | . . 1 Uniques/NPCs Destroyed . | . . . Combat | -11 -10 -10 -------- Run | Yrd Mat Sub Hostile Shots Fired 58 | . 31 27 Missed 18 | . 10 8 Hits 40 | . 21 19 Projectile 40 | . 21 19 AOE 1 | . . 1 Critical Strikes 2 | . 1 1 Damage Taken 890 | . 389 501 Core 262 | . 17 245 Absorbed by Shields . | . . . Core Remaining (%) 100 | 100 . . Volleys Fired 26 | . 24 2 Largest 2 | . 2 1 Hottest 66 | . 66 48 Shots Fired 32 | . 30 2 Gun . | . . . Cannon 1 | . . 1 Launcher 31 | . 30 1 Special . | . . . Kinetic 1 | . . 1 Thermal . | . . . Explosive 31 | . 30 1 Electromagnetic . | . . . Robot Hit Streak 2 | . 2 2 Robot Miss Streak 4 | . 4 . Penetration Max . | . . . Secondary Targets . | . . . Shots Hit Robots 8 | . 4 4 Core Hits 30 | . 26 4 Critical Kills . | . . . Critical Parts Destroyed . | . . . Critical Strikes . | . . . Melee Attacks 3 | . . 3 Impact . | . . . Slashing 3 | . . 3 Piercing . | . . . Sneak Attacks . | . . . Combat Hostiles . | . . . Follow-up Attacks . | . . . Damage Inflicted 1388 | . 1075 313 Guns . | . . . Cannons . | . . . Explosions 1318 | . 1053 265 Melee 48 | . . 48 Ramming 22 | . 22 . Kinetic . | . . . Thermal . | . . . Explosive 1270 | . 1005 265 Electromagnetic 48 | . 48 . Impact . | . . . Slashing 48 | . . 48 Piercing . | . . . Highest Corruption 1 | . 1 1 Average Corruption 1 | . 1 1 Corruption Purged . | . . . Corruption Blocked . | . . . Effects 1 | . 1 . Message Errors 1 | . 1 . Overload Shots . | . . . Overflow Damage 36 | . 36 . Projectiles . | . . . Explosions 36 | . 36 . Melee . | . . . Knockbacks . | . . . Impact . | . . . Kinetic . | . . . Secondary . | . . . Self-Inflicted Damage 131 | . 102 29 Shots 7 | . 6 1 Rammed . | . . . Targets Rammed 10 | . 10 . Kicked 10 | . 10 . Crushed . | . . . Highest Temperature 105 | . 105 . Average Temperature 23 | . 23 . Received Heat Transfer 258 | . 165 93 Siege Activations . | . . . Martial Activations . | . . . Shielding Activations . | . . . Robots Disrupted . | . . . Combat Hostiles . | . . . Robots Corrupted . | . . . Combat Hostiles . | . . . Parts Fried . | . . . Impact Corruptions . | . . . Robots Melted . | . . . Combat Hostiles . | . . . Parts Melted 1 | . . 1 Heat Transferred . | . . . Parts Sabotaged . | . . . Parts Stolen . | . . . Parts Stripped . | . . . Power Chain Reactions . | . . . Alert | -11 -10 -10 ------- Run | Yrd Mat Sub Maximum Alert Level 1 | . 1 . Low Security (%) 40 | 100 35 . Level 1 59 | . 64 . Level 2 . | . . . Level 3 . | . . . Level 4 . | . . . Level 5 . | . . . High Security . | . . . Max Security . | . . . Peak Influence 300 | . 300 . Initial . | . . . Average 192 | . 208 . Influence Increases 550 | . 550 . Destroy 0b10 Robot/C 180 | . 180 . Destroy 0b10 Robot/NC 25 | . 25 . Destroy Leader 56 | . 56 . Disable Machine 90 | . 90 . Destroy Structure 169 | . 169 . Lose Combat Pursuer 30 | . 30 . Influence Decreases 550 | . 310 240 Entered New Map 116 | . . 116 Time Decay 374 | . 290 84 Lost Part 60 | . 20 40 Squads Dispatched 2 | . 2 . Investigation 1 | . 1 . Extermination . | . . . Reinforcement 1 | . 1 . Assault . | . . . Garrison . | . . . Intercept . | . . . Searches Triggered . | . . . Construction Impeded . | . . . Haulers Reinforced . | . . . Active Scanning Responses . | . . . Cargo Convoy Interrupts . | . . . Stealth | -11 -10 -10 --------- Run | Yrd Mat Sub Distress Signals . | . . . Communications Jammed . | . . . Distress Signals . | . . . Times Spotted 25 | . 13 12 Peak Tracking Total 9 | . 3 9 Tactical Retreats 3 | . 2 1 Traps | -11 -10 -10 ------- Run | Yrd Mat Sub Traps Triggered 1 | . 1 . Indirectly . | . . . Trap Hack Attempts . | . . . Triggered . | . . . Disarmed . | . . . Reprogrammed . | . . . Reused . | . . . Traps Extracted . | . . . Installed . | . . . Triggered . | . . . Machines | -11 -10 -10 ---------- Run | Yrd Mat Sub Machines Disabled 6 | . 6 . Max in Single Turn 2 | . 2 . Machines Repaired . | . . . Machines Dismantled . | . . . Machines Sabotaged . | . . . Overloaded Fab Kills . | . . . Hacking | -11 -10 -10 --------- Run | Yrd Mat Sub Machines Accessed . | . . . Terminals . | . . . Fabricators . | . . . Repair Stations . | . . . Recycling Units . | . . . Scanalyzers . | . . . Garrison Access . | . . . Total Hacks . | . . . Successful . | . . . Failed . | . . . Catastrophic . | . . . Database Lockouts . | . . . Manual . | . . . Terminals . | . . . Fabricators . | . . . Repair Stations . | . . . Recycling Units . | . . . Scanalyzers . | . . . Garrison Access . | . . . Terminal Hacks . | . . . Fabricator Hacks . | . . . Repair Station Hacks . | . . . Recycling Unit Hacks . | . . . Scanalyzer . | . . . Garrison Access Hacks . | . . . Unauthorized Hacks . | . . . Terminals . | . . . Fabricators . | . . . Repair Stations . | . . . Recycling Units . | . . . Scanalyzers . | . . . Garrison Access . | . . . Data Cores Recovered . | . . . Used . | . . . Hacking Detections . | . . . Full Trace Events . | . . . Feedback Events . | . . . Feedback Blocked . | . . . Robot Schematics Acquired . | . . . Robots Built . | . . . Authchips . | . . . Time . | . . . Total Robot Build Rating . | . . . Part Schematics Acquired . | . . . Parts Built . | . . . Authchips . | . . . Time . | . . . Total Part Build Rating . | . . . Part Studies Acquired . | . . . Parts Repaired . | . . . Time . | . . . Parts Recycled . | . . . Recycled Matter . | . . . Retrieved Matter . | . . . Retrieved Components . | . . . Parts Scanalyzed . | . . . Part Schematics Acquired . | . . . Parts Damaged . | . . . Bothacking | -11 -10 -10 ------------ Run | Yrd Mat Sub Used RIF Installer . | . . . Robots Hacked . | . . . Non-combat . | . . . Combat . | . . . Robot Hacks Applied . | . . . Relay Couplers Released . | . . . Fabnet Peak Effective % . | . . . Robots Rewired . | . . . Allies Hacked . | . . . Hacks Repelled . | . . . Allies | -11 -10 -10 -------- Run | Yrd Mat Sub Total Allies . | . . . Largest Group . | . . . Highest-Rated Group . | . . . Highest-Rated Ally . | . . . Total Orders . | . . . Ally Attacks . | . . . Total Damage . | . . . Kills . | . . . Allies Corrupted . | . . . Allies Melted . | . . . Intel | -11 -10 -10 ------- Run | Yrd Mat Sub Active Infowar (turns) 23 | . . 23 Optics 23 | . . 23 Robot Analysis Total . | . . . Derelict Logs Recovered 1 | . . 1 Drone Launches . | . . . Drone Recoveries . | . . . Exploration | -11 -10 -10 ------------- Run | Yrd Mat Sub Turns Passed 1003 | 57 696 250 Spaces Moved 460 | 46 282 132 Core 24 | 8 . 16 Treads . | . . . Legs 436 | 38 282 116 Wheels . | . . . Hover . | . . . Flight . | . . . Fastest Speed 50 | 50 120 50 Average Speed 186 | 107 215 151 Slowest Speed 260 | 120 260 190 Overloaded Moves . | . . . Propulsion Burnouts . | . . . Robots Hopped . | . . . Potential Cave-ins . | . . . Cave-ins Triggered . | . . . Exploration Rate (%) 16 | 4 35 10 Regions Visited 2 Branch Regions 1 Pre-discovered Areas . | . . . Known Exits Taken . | . . . Unknown Exits Taken 2 | 1 1 . Scrap Searched . | . . . Spaces Dug 16 | . 16 . Terrain Destroyed 227 | . 217 10 Melee . | . . . Projectile . | . . . AOE 227 | . 217 10 Terrain Rammed . | . . . Walls Destroyed . | . . . Machines Disabled . | . . . Actions | -11 -10 -10 --------- Run | Yrd Mat Sub Total 550 | 51 326 173 Wait 26 | . 1 25 Move 458 | 45 281 132 Hop . | . . . Pick Up 1 | 1 . . Fast Attach 16 | 4 5 7 Attach 2 | 1 . 1 Detach 5 | . 3 2 Swap . | . . . Drop 3 | . 2 1 Fire 26 | . 24 2 Melee 3 | . . 3 Ram . | . . . Kick 10 | . 10 . Crush . | . . . Escape Stasis . | . . . Rewire . | . . . Trap . | . . . Miscellaneous . | . . . Route ------- -11/Scrapyard -10/Materials -10/Subcaves History --------- Turn | Location | Event 4 | -11/Scrapyard | Discovered new exit (range 15) 58 | -11/Scrapyard | Entered Materials 317 | -10/Materials | Build established: Mutant 706 | -10/Materials | Discovered new exit (range 10) 754 | -10/Materials | Entered Subcaves 810 | -10/Subcaves | Learned Materials machine intel 892 | -10/Subcaves | Ambushed by swarm of Subdwellers 894 | -10/Subcaves | Ambushed by Subdwellers from Twisted Machinery 894 | -10/Subcaves | Ambushed by Subdwellers from Twisted Machinery 894 | -10/Subcaves | Ambushed by Subdwellers from Twisted Machinery 894 | -10/Subcaves | Ambushed by Subdwellers from Twisted Machinery 908 | -10/Subcaves | Core integrity fell below 50% 914 | -10/Subcaves | Core integrity fell below 20% 940 | -10/Subcaves | Lost 4 parts (1p1n1u1w) 964 | -10/Subcaves | Lost 3 allies 1004 | -10/Subcaves | Destroyed by 7S-9OW(R) with Subdweller Machine Gun Last Messages --------------- Subatomizers dissect the Sub. Power Source. Acquired Myomer Leg. Acquired 52 matter. Acquired 55 matter. Acquired 118 matter. Acquired 6 matter. Subatomizers dissect the Sub. Power Source. Acquired Neutrino Core. Acquired 10 matter. Subatomizers dissect the Sub. Power Source. Acquired Bore Cannon. Acquired 10 matter. Acquired Targeting Computer. Subatomizers dissect the Sub. Power Source. Acquired Sub. Optics. Acquired 20 matter. Subatomizers dissect the Sub. Power Source. The unstable cave ceiling collapses. Subatomizers dissect the Sub. Power Source, destroying it. Map ----- +----------------------------------------------------+ | | | | | | | | | | | | | | | | | ?????????????????????????????????????????????????? | | ?????????????????????????????????????????????????? | | ?????????????????????????????????????????????????? | | ?????????????????????????????????????????????????? | | ?????????????????????????????????????????????????? | | ?????????????????????????????????????????????????? | | ?????????????????????????????????????????????????? | | ?????????????????????????????????????????????????? | | ?????????????????????????????????????????????????? | | ?????????????????????????????????????????????????? | | ?????????????????????????????????????????????????? | | ?????????????????????????????????????????????????? | | ?????????????????????????????????????????????????? | | ?????????????????????????????????????????????????? | | ############?????????????????????????????????????? | | # ##????###?######??????????????????????? | | #????# ### ########## #???????????? | | ## #####?# @ ""??????? | | # "#" = ! # ### ## "" """???????? | | ##"" !=!**[ ##? "" ### "#"???????? | | # " !%]% % #??? "" ##?????????????? | | #"" *]!! &%!%& #??? & "" #??????????????? | | " ! !*!#[ ! &%! #????%R "" ?????????????? | | #" %! ## ##????& "" ""????????????? | | " "# ## #?????? #### ????????????? | | ### ##?????? ????????????????? | | # "# ##????????R ???????????????? | | # ### # ##????????? #??????????????? | | #?# # ## ######??????????? ##??????????????? | | ### ## ##?###???????????????? #???????????????? | | ### #?????????????????????? ???????????????? | | # #?????????????????????? ??????????????? | | # ##??????????????????????? ??????????????? | | ###???????????????????????? ?????????????? | | #??????????????????????????? ??????????????? | | #??????????????????????????????????????????? | | #????????????????????????????????????????? | | ## #????????????????????????????????????????? | | ##### #???????????????????????????????????????? | | ????######???????????????????????????????????????? | | ?????????????????????????????????????????????????? | | ?????????????????????????????????????????????????? | +----------------------------------------------------+ Best States ------------- Heat Dissipation 25 Energy Generation 19 Energy Capacity 315 Matter Stores 300 Matter Capacity 300 Sight Range 21 Terrain Scan Density 10 Armor Coverage 450 Evasion (%) 55 Targeting Accuracy 5 Item Schematics ----------------- None Robot Schematics ------------------ None Fabricated ------------ Nothing Repaired ---------- Nothing Studied --------- None Alien Tech Used ----------------- None Achievements -------------- None Challenges ------------ None Game ------ Seed RagnarokDisruptionWall Manual? 0 Play Time 00:12:14 Cumulative 4.1 hours Start 2026.06.28 @ 09:41:31 End 2026.06.28 @ 09:53:49 Sessions 1 Manual Loads 0 Difficulty Rogue Special Mode None Game No. 13 Rogue 13 Adventurer 0 Explorer 0 Win Type - Total 0 Types 0/0/0/0/0/0/0/0/0/0 Lore% 0 Gallery% 7 Achievement% 6 Wizard Run 0 Options --------- Layout 1 ASCII 0 Keyboard 1 Movement Numpad Keybinds 0 Fullscreen 1 Font 24/Smallcaps Map View 50x35 Zoom Use 0% Tactical HUD 0 Map Filters NONE Filters NONE Steam 1 RUN: 1bc7be5e-7d8b-4b1b-8746-de63fbcfc1be